fUSD/lending_fUSD_20240514
["ID","MTS","AMOUNT","RATE_DAILY","PERIOD"]
[326987404,1715686235890,-500.0,0.00012899,2]
[326987406,1715686235901,-573.41962599,0.00012899,2]
[326987408,1715686235912,-500.0,0.00012899,2]
[326987410,1715686235927,-502.34587068,0.00012899,2]
[326987412,1715686235937,-516.28594229,0.00012899,2]
[326987414,1715686235947,-500.0,0.00012899,2]
[326987416,1715686235956,-500.0,0.00012899,2]
[326987418,1715686235967,-279.01863078,0.00012899,2]
[326987420,1715686235978,-347.66231205,0.00012899,2]
[326987422,1715686235988,-513.36590005,0.00012899,2]
[326987424,1715686236000,-504.65706232,0.00012899,2]
[326987426,1715686236010,-500.0,0.00012899,2]
[326987428,1715686236020,-507.85361205,0.00012899,2]
[326987430,1715686236030,-500.0,0.00012899,2]
[326987432,1715686236040,-500.0,0.00012899,2]
[326987435,1715686236050,-500.0,0.00012899,2]
[326987437,1715686236060,-500.0,0.00012899,2]
[326987439,1715686236071,-556.47,0.00012899,2]
[326987440,1715686236081,-500.0,0.00012899,2]
[326987441,1715686236092,-500.0,0.00012899,2]
[326987442,1715686236102,-500.0,0.00012899,2]
[326987443,1715686236113,-662.79,0.00012899,2]
[326987444,1715686236123,-500.0,0.00012899,2]
[326987445,1715686236133,-500.0,0.00012899,2]
[326987446,1715686236144,-500.73448257,0.00012899,2]
[326987447,1715686236156,-500.0,0.00012899,2]
[326987448,1715686236166,-500.0,0.00012899,2]
[326987449,1715686236176,-500.0,0.00012899,2]
[326987450,1715686236186,-134147.64875922,0.000129,2]
[326987451,1715686236200,-1072.44214862,0.000129,2]
[326987452,1715686236263,-443.7326138,0.000129,2]
[326987453,1715686236312,-645.60729713,0.000129,2]
[326987454,1715686236324,-2880.36659732,0.000129,2]
[326987455,1715686236338,-1320.12980124,0.000129,2]
[326987456,1715686236351,-540.64507524,0.000129,2]
[326987457,1715686236363,-3168.80810743,0.000129,2]
[326987458,1715686236374,-1000.0,0.000129,2]
[326987459,1715686236385,-1000.0,0.000129,2]
[326987460,1715686236395,-1294.0432345,0.000129,2]
[326987475,1715686237861,-2702.62659115,0.00010249,2]
[326987476,1715686237871,-5493.4027655,0.000129,2]
[326987477,1715686237881,-4241.2065,0.000129,2]
[326987478,1715686237891,-32055.7929,0.000129,2]
[326987479,1715686237906,-173.54433881,0.000129,2]
[326987480,1715686237916,-12212.37745001,0.000129,2]
[326987481,1715686237925,-351.3302369,0.000129,2]
[326987482,1715686237935,-250.0,0.00012986,2]
[326987483,1715686237945,-448.745,0.00012987,2]
[326987484,1715686237954,-168.77,0.00012989,2]
[326987485,1715686237964,-166.78278404,0.00012989,2]
[326987486,1715686237974,-168.77,0.0001299,2]
[326987487,1715686237983,-168.77,0.0001299,2]
[326987488,1715686237994,-168.77,0.0001299,2]
[326987489,1715686238003,-168.77,0.0001299,2]
[326987490,1715686238013,-168.77,0.0001299,2]
[326987491,1715686238022,-168.77,0.0001299,2]
[326987492,1715686238031,-168.77,0.0001299,2]
[326987493,1715686238041,-500.0,0.00012995,2]
[326987494,1715686238051,-500.0,0.00012995,2]
[326987495,1715686238060,-500.0,0.00012995,2]
[326987496,1715686238070,-500.0,0.00012995,2]
[326987497,1715686238079,-40110.0,0.00012996,2]
[326987498,1715686238089,-522.66900323,0.00012998,2]
[326987499,1715686238099,-1213.08546547,0.00012998,2]
[326987500,1715686238109,-155.0,0.00012998,2]
[326987501,1715686238118,-535.18687779,0.00012998,2]
[326987503,1715686238127,-292.47865318,0.00012998,2]
[326987505,1715686238137,-450.09777938,0.00012998,2]
[326987507,1715686238147,-204.49444067,0.00012998,2]
[326987509,1715686238159,-6375.93537093,0.00012998,2]
[326987511,1715686238169,-1110.95201386,0.00012998,2]
[326987513,1715686238179,-155.0,0.00012998,2]
[326987514,1715686238188,-782.62056695,0.00012998,2]
[326987515,1715686238197,-605.40552838,0.00012998,2]
[326987516,1715686238207,-472.3976956,0.00012998,2]
[326987517,1715686238216,-218.05512287,0.00012998,2]
[326987518,1715686238226,-207.2840544,0.00012998,2]
[326987519,1715686238235,-302.32798226,0.00012998,2]
[326987520,1715686238245,-326.5426325,0.00012998,2]
[326987521,1715686238254,-1004.63658851,0.00012998,2]
[326987522,1715686238264,-1999.47523704,0.00012998,2]
[326987523,1715686238273,-155.35709105,0.00012998,2]
[326987524,1715686238284,-4739.38262032,0.00012998,2]
[326987525,1715686238293,-500.0,0.00012998,2]
[326987526,1715686238303,-536.58,0.00012998,2]
[326987527,1715686238312,-500.0,0.00012998,2]
[326987528,1715686238322,-223.54477722,0.00012998,2]
[326987529,1715686238331,-500.0,0.00012998,2]
[326987530,1715686238341,-500.0,0.00012998,2]
[326987531,1715686238351,-500.0,0.00012998,2]
[326987532,1715686238360,-556.47,0.00012998,2]
[326987533,1715686238369,-500.0,0.00012998,2]
[326987534,1715686238379,-500.0,0.00012998,2]
[326987535,1715686238388,-300.02,0.00012999,2]
[326987536,1715686238398,-500.0,0.00012999,2]
[326987537,1715686238408,-513.91,0.00012999,2]
[326987538,1715686238418,-505.64656316,0.00012999,2]
[326987539,1715686238427,-500.0,0.00012999,2]
[326987540,1715686238436,-405.97597141,0.00012999,2]
[326987541,1715686238445,-157.58630395,0.00012999,2]
[326987542,1715686238455,-1034.52556333,0.00012999,3]
[326987543,1715686238465,-610.19829542,0.00012999,2]
[326987544,1715686238473,-500.0,0.00012999,2]
[326987545,1715686238483,-384.42,0.00012999,2]
[326987546,1715686238492,-500.0,0.00012999,2]
[326987547,1715686238501,-520.6257289,0.00012999,2]
[326987548,1715686238510,-500.0,0.00012999,2]
[326987549,1715686238519,-490.31,0.00012999,2]
[326987550,1715686238528,-500.0,0.00012999,2]
[326987551,1715686238538,-500.0,0.00012999,2]
[326987552,1715686238548,-324.37,0.00012999,2]
[326987553,1715686238557,-500.0,0.00012999,2]
[326987554,1715686238566,-500.0,0.00012999,2]
[326987555,1715686238575,-500.0,0.00012999,2]
[326987556,1715686238585,-500.0,0.00012999,2]
[326987557,1715686238594,-500.0,0.00012999,2]
[326987558,1715686238604,-500.0,0.00012999,2]
[326987559,1715686238614,-500.0,0.00012999,2]
[326987560,1715686238623,-500.0,0.00012999,2]
[326987561,1715686238633,-500.0,0.00012999,2]
[326987562,1715686238642,-500.0,0.00012999,2]
[326987563,1715686238652,-249.41,0.00012999,2]
[326987564,1715686238662,-500.0,0.00012999,2]
[326987565,1715686238672,-500.0,0.00012999,2]
[326987566,1715686238682,-500.0,0.00012999,2]
[326987567,1715686238693,-500.0,0.00012999,2]
[326987568,1715686238702,-500.0,0.00012999,2]
[326987569,1715686238712,-500.0,0.00012999,2]
[326987570,1715686238723,-500.0,0.00012999,2]
[326987571,1715686238733,-500.0,0.00012999,2]
[326987572,1715686238743,-500.0,0.00012999,2]
[326987573,1715686238753,-500.0,0.00012999,2]
[326987574,1715686238763,-500.0,0.00012999,2]
[326987575,1715686238773,-230.1,0.00012999,2]
[326987576,1715686238782,-500.0,0.00012999,2]
[326987577,1715686238792,-500.0,0.00012999,2]
[326987578,1715686238802,-500.0,0.00012999,2]
[326987579,1715686238811,-488.06,0.00012999,2]
[326987580,1715686238821,-500.0,0.00012999,2]
[326987581,1715686238831,-342.33,0.00012999,2]
[326987582,1715686238841,-556.47,0.00012999,2]
[326987583,1715686238851,-556.47,0.00012999,2]
[326987584,1715686238861,-556.47,0.00012999,2]
[326987585,1715686238871,-556.47,0.00012999,2]
[326987586,1715686238881,-556.47,0.00012999,2]
[326987587,1715686238891,-556.47,0.00012999,2]
[326987588,1715686238902,-556.47,0.00012999,2]
[326987589,1715686238913,-556.47,0.00012999,2]
[326987590,1715686238924,-556.47,0.00012999,2]
[326987591,1715686238934,-556.47,0.00012999,2]
[326987592,1715686238944,-556.47,0.00012999,2]
[326987593,1715686238955,-556.47,0.00012999,2]
[326987594,1715686238964,-556.47,0.00012999,2]
[326987595,1715686238975,-556.47,0.00012999,2]
[326987596,1715686238984,-556.47,0.00012999,2]
[326987597,1715686238996,-556.47,0.00012999,2]
[326987598,1715686239007,-556.47,0.00012999,2]
[326987599,1715686239018,-556.47,0.00012999,2]
[326987600,1715686239028,-556.47,0.00012999,2]
[326987601,1715686239039,-556.47,0.00012999,2]
[326987602,1715686239050,-556.47,0.00012999,2]
[326987603,1715686239061,-556.56606596,0.00012999,2]
[326987604,1715686239071,-500.0,0.00012999,2]
[326987605,1715686239081,-500.0,0.00012999,2]
[326987606,1715686239093,-500.0,0.00012999,2]
[326987607,1715686239103,-500.0,0.00012999,2]
[326987608,1715686239114,-500.0,0.00012999,2]
[326987609,1715686239125,-500.0,0.00012999,2]
[326987610,1715686239136,-500.0,0.00012999,2]
[326987611,1715686239146,-500.0,0.00012999,2]
[326987612,1715686239158,-500.0,0.00012999,2]
[326987613,1715686239168,-500.0,0.00012999,2]
[326987614,1715686239179,-500.0,0.00012999,2]
[326987615,1715686239189,-500.0,0.00012999,2]
[326987616,1715686239200,-601.05,0.00012999,2]
[326987617,1715686239211,-662.79,0.00012999,2]
[326987618,1715686239221,-662.79,0.00012999,2]
[326987619,1715686239231,-662.79,0.00012999,2]
[326987620,1715686239240,-662.79,0.00012999,2]
[326987621,1715686239251,-662.79,0.00012999,2]
[326987622,1715686239260,-662.79,0.00012999,2]
[326987623,1715686239270,-662.79,0.00012999,2]
[326987624,1715686239281,-662.79,0.00012999,2]
[326987625,1715686239291,-662.79,0.00012999,2]
[326987626,1715686239302,-662.79,0.00012999,2]
[326987627,1715686239312,-662.79,0.00012999,2]
[326987628,1715686239322,-662.79,0.00012999,2]
[326987629,1715686239332,-662.79,0.00012999,2]
[326987630,1715686239343,-662.79,0.00012999,2]
[326987631,1715686239353,-662.79,0.00012999,2]
[326987632,1715686239364,-662.79,0.00012999,2]
[326987633,1715686239375,-662.79,0.00012999,2]
[326987634,1715686239385,-662.79,0.00012999,2]
[326987635,1715686239395,-662.79,0.00012999,2]
[326987636,1715686239406,-662.79,0.00012999,2]
[326987637,1715686239416,-662.79,0.00012999,2]
[326987638,1715686239426,-662.81,0.00012999,2]
[326987639,1715686239436,-167.37,0.00012999,2]
[326987640,1715686239446,-500.0,0.00012999,2]
[326987641,1715686239457,-500.0,0.00012999,2]
[326987642,1715686239467,-500.0,0.00012999,2]
[326987643,1715686239477,-500.0,0.00012999,2]
[326987644,1715686239487,-500.0,0.00012999,2]
[326987645,1715686239498,-500.0,0.00012999,2]
[326987646,1715686239508,-500.0,0.00012999,2]
[326987647,1715686239519,-500.0,0.00012999,2]
[326987648,1715686239530,-500.0,0.00012999,2]
[326987649,1715686239540,-500.0,0.00012999,2]
[326987650,1715686239551,-500.0,0.00012999,2]
[326987651,1715686239561,-500.0,0.00012999,2]
[326987652,1715686239571,-500.0,0.00012999,2]
[326987653,1715686239581,-500.0,0.00012999,2]
[326987654,1715686239592,-294.82,0.00012999,2]
[326987655,1715686239602,-500.0,0.00012999,2]
[326987656,1715686239612,-500.0,0.00012999,2]
[326987657,1715686239622,-500.0,0.00012999,2]
[326987658,1715686239632,-500.0,0.00012999,2]
[326987659,1715686239643,-187.16,0.00012999,2]
[326987660,1715686239654,-387.24,0.00012999,2]
[326987661,1715686239664,-500.0,0.00012999,2]
[326987662,1715686239674,-500.0,0.00012999,2]
[326987663,1715686239684,-500.0,0.00012999,2]
[326987664,1715686239694,-349.55,0.00012999,2]
[326987665,1715686239704,-500.0,0.00012999,2]
[326987666,1715686239714,-500.0,0.00012999,2]
[326987671,1715686239910,-500.0,0.00012999,2]
[326987672,1715686239919,-500.0,0.00012999,2]
[326987673,1715686239928,-500.0,0.00012999,2]
[326987674,1715686239936,-500.0,0.00012999,2]
[326987675,1715686239945,-500.0,0.00012999,2]
[326987676,1715686239955,-500.0,0.00012999,2]
[326987677,1715686239964,-500.0,0.00012999,2]
[326987678,1715686239972,-500.0,0.00012999,2]
[326987679,1715686239980,-500.0,0.00012999,2]
[326987680,1715686239990,-500.0,0.00012999,2]
[326987681,1715686240001,-500.0,0.00012999,2]
[326987682,1715686240011,-500.0,0.00012999,2]
[326987683,1715686240021,-593.72715176,0.00012999,2]
[326987684,1715686240031,-500.0,0.00012999,2]
[326987685,1715686240041,-500.0,0.00012999,2]
[326987686,1715686240051,-591.1,0.00012999,2]
[326987687,1715686240061,-500.0,0.00012999,2]
[326987688,1715686240071,-500.0,0.00012999,2]
[326987689,1715686240082,-500.0,0.00012999,2]
[326987690,1715686240093,-592.6,0.00012999,2]
[326987691,1715686240103,-140121.88003197,0.00013,2]
[326987692,1715686240113,-203230.82362181,0.00013,2]
[326987693,1715686240128,-190161.14444233,0.00013,2]
[326987694,1715686240140,-120391.52350703,0.00013,2]
[326987695,1715686240172,-270.452,0.00013,2]
[326987782,1715686245932,-631.93,0.00013,2]
[326987806,1715686436303,-341.63029962,9e-05,2]
[326987807,1715686439215,-157.4791402,9e-05,2]
[326987808,1715686440181,-156.61940665,9e-05,2]
[326987852,1715687289041,1000.0,0.0003,120]
[326987856,1715687363167,-155.0,8.962e-05,2]
[326987857,1715687363188,-1801.75106077,8.962e-05,2]
[326987858,1715687363209,-767.02683923,8.963e-05,2]
[326987868,1715687431588,-239.38744252,8.962e-05,2]
[326987869,1715687431599,-150.0,8.986e-05,2]
[326987870,1715687431609,-394.27115353,9e-05,2]
[326987871,1715687431619,-2659.10758753,9e-05,2]
[326987872,1715687431709,-19561.52818379,9e-05,2]
[326987873,1715687431770,-5015.98876682,9e-05,2]
[326987874,1715687431783,-668.1020005,9e-05,2]
[326987875,1715687431891,-24368.79136036,9e-05,2]
[326988100,1715687437709,-345.88545334,8.963e-05,2]
[326988101,1715687437719,-165910.63200728,9e-05,2]
[326988102,1715687437729,-13193.59270938,0.0001,2]
[326988103,1715687437739,-14619.8867,0.00010152,2]
[326988104,1715687437749,-150.0,0.00011247,2]
[326988105,1715687437759,-499.99,0.00011247,2]
[326988106,1715687437768,-250.0,0.00011289,2]
[326988107,1715687437778,-150.99,0.00011289,2]
[326988108,1715687437787,-250.0,0.00011301,2]
[326988109,1715687437797,-1292.39,0.0001132,2]
[326988110,1715687437806,-150.02,0.0001133,2]
[326988111,1715687437816,-194.5,0.00011331,2]
[326988112,1715687437825,-22030.66,0.0001134,2]
[326988113,1715687437834,-600.0,0.00011409,2]
[326988114,1715687437844,-152.51,0.00011425,2]
[326988115,1715687437854,-179.0,0.00011472,2]
[326988116,1715687437863,-178.61,0.00011856,2]
[326988117,1715687437874,-200.0,0.000119,4]
[326988118,1715687437884,-500.0,0.00012,4]
[326988119,1715687437893,-152.51,0.0001202,2]
[326988120,1715687437904,-800.0,0.000121,4]
[326988121,1715687437914,-1100.0,0.000122,4]
[326988122,1715687437924,-1400.0,0.000123,4]
[326988123,1715687437935,-200.0,0.000124,4]
[326988124,1715687437945,-226.09,0.00012441,2]
[326988125,1715687437954,-200.0,0.000125,4]
[326988126,1715687437964,-419.2,0.00012541,2]
[326988127,1715687437973,-868.95,0.00012541,2]
[326988128,1715687437983,-415.18,0.00012541,2]
[326988129,1715687437993,-868.95,0.00012541,2]
[326988130,1715687438003,-868.95,0.00012541,2]
[326988132,1715687438012,-415.18,0.00012541,2]
[326988133,1715687438023,-868.95,0.00012541,2]
[326988134,1715687438033,-415.18,0.00012541,2]
[326988135,1715687438043,-415.18,0.00012541,2]
[326988136,1715687438052,-868.95,0.00012541,2]
[326988137,1715687438062,-415.18,0.00012541,2]
[326988138,1715687438072,-868.95,0.00012541,2]
[326988140,1715687438081,-415.18,0.00012541,2]
[326988142,1715687438092,-868.95,0.00012541,2]
[326988144,1715687438102,-200.0,0.000126,4]
[326988146,1715687438111,-523.61,0.00012678,2]
[326988148,1715687438121,-150.0,0.00012678,2]
[326988149,1715687438130,-165.02,0.00012678,2]
[326988150,1715687438140,-150.0,0.00012678,2]
[326988151,1715687438150,-707.21,0.00012678,2]
[326988152,1715687438160,-150.0,0.00012678,2]
[326988153,1715687438170,-150.0,0.00012678,2]
[326988154,1715687438180,-523.61,0.00012678,2]
[326988155,1715687438190,-150.0,0.00012678,2]
[326988156,1715687438199,-163.33,0.00012678,2]
[326988157,1715687438209,-426.82,0.00012678,2]
[326988158,1715687438220,-163.33,0.00012678,2]
[326988159,1715687438229,-150.0,0.00012678,2]
[326988160,1715687438239,-150.0,0.00012678,2]
[326988162,1715687438251,-150.0,0.00012678,2]
[326988164,1715687438263,-523.61,0.00012678,2]
[326988166,1715687438272,-150.0,0.00012678,2]
[326988168,1715687438282,-523.61,0.00012678,2]
[326988170,1715687438292,-150.0,0.00012678,2]
[326988172,1715687438302,-150.0,0.00012678,2]
[326988174,1715687438311,-523.61,0.00012678,2]
[326988176,1715687438321,-190.82,0.00012678,2]
[326988178,1715687438332,-150.0,0.00012678,2]
[326988180,1715687438341,-150.0,0.00012678,2]
[326988182,1715687438351,-150.0,0.00012678,2]
[326988184,1715687438361,-150.0,0.00012678,2]
[326988185,1715687438370,-150.0,0.00012678,2]
[326988186,1715687438379,-200.0,0.000127,4]
[326988187,1715687438388,-1563.60941232,0.00012709,2]
[326988188,1715687438398,-194.5,0.00012747,2]
[326988189,1715687438407,-12647.87132177,0.0001275,2]
[326988190,1715687438416,-800.0,0.000128,4]
[326988191,1715687438427,-600.0,0.00012835,2]
[326988192,1715687438437,-1883.39854,0.0001287,2]
[326988193,1715687438446,-500.0,0.00012876,2]
[326988194,1715687438455,-500.0,0.00012876,2]
[326988195,1715687438465,-536.58,0.00012876,2]
[326988196,1715687438474,-500.0,0.00012876,2]
[326988197,1715687438484,-500.0,0.00012876,2]
[326988198,1715687438494,-500.0,0.00012876,2]
[326988199,1715687438504,-500.0,0.00012876,2]
[326988200,1715687438513,-500.0,0.00012876,2]
[326988201,1715687438523,-500.0,0.00012876,2]
[326988202,1715687438533,-500.0,0.00012876,2]
[326988203,1715687438542,-500.0,0.00012876,2]
[326988204,1715687438552,-582.52,0.00012876,2]
[326988205,1715687438562,-500.0,0.00012876,2]
[326988206,1715687438571,-500.0,0.00012876,2]
[326988207,1715687438581,-500.0,0.00012876,2]
[326988208,1715687438592,-511.50609602,0.00012876,2]
[326988209,1715687438601,-150.0,0.00012876,2]
[326988210,1715687438611,-500.0,0.00012876,2]
[326988211,1715687438620,-500.0,0.00012876,2]
[326988212,1715687438630,-509.49668385,0.00012876,2]
[326988213,1715687438639,-500.0,0.00012876,2]
[326988214,1715687438649,-500.0,0.00012876,2]
[326988215,1715687438658,-500.0,0.00012876,2]
[326988216,1715687438667,-156.81633385,0.00012876,2]
[326988217,1715687438678,-500.0,0.00012876,2]
[326988218,1715687438689,-500.0,0.00012876,2]
[326988219,1715687438698,-501.72538225,0.00012876,2]
[326988220,1715687438708,-500.0,0.00012876,2]
[326988221,1715687438719,-405.97597141,0.00012876,2]
[326988222,1715687438729,-500.0,0.00012876,2]
[326988223,1715687438739,-533.28,0.00012876,2]
[326988224,1715687438749,-500.0,0.00012876,2]
[326988225,1715687438758,-500.0,0.00012876,2]
[326988226,1715687438768,-607.55,0.00012876,2]
[326988227,1715687438778,-500.0,0.00012876,2]
[326988228,1715687438789,-500.0,0.00012876,2]
[326988229,1715687438799,-500.0,0.00012876,2]
[326988230,1715687438808,-500.0,0.00012876,2]
[326988231,1715687438818,-500.0,0.00012876,2]
[326988232,1715687438828,-500.0,0.00012876,2]
[326988233,1715687438839,-387.24,0.00012876,2]
[326988234,1715687438849,-500.0,0.00012876,2]
[326988235,1715687438859,-620.32,0.00012897,2]
[326988236,1715687438868,-508.47,0.00012897,2]
[326988237,1715687438878,-500.0,0.00012897,2]
[326988238,1715687438888,-401.69883913,0.00012897,2]
[326988239,1715687438898,-500.0,0.00012897,2]
[326988240,1715687438907,-209.48830826,0.00012897,2]
[326988241,1715687438916,-500.0,0.00012897,2]
[326988242,1715687438927,-554.19,0.00012897,2]
[326988243,1715687438936,-500.0,0.00012897,2]
[326988244,1715687438946,-500.0,0.00012897,2]
[326988245,1715687438956,-569.43,0.00012897,2]
[326988246,1715687438966,-500.0,0.00012897,2]
[326988247,1715687438976,-500.0,0.00012897,2]
[326988248,1715687438985,-500.0,0.00012897,2]
[326988249,1715687438994,-500.0,0.00012897,2]
[326988250,1715687439004,-500.0,0.00012897,2]
[326988251,1715687439013,-500.0,0.00012897,2]
[326988252,1715687439023,-500.0,0.00012897,2]
[326988253,1715687439032,-500.0,0.00012897,2]
[326988254,1715687439042,-500.0,0.00012897,2]
[326988255,1715687439052,-500.0,0.00012897,2]
[326988256,1715687439061,-199.48262384,0.00012897,2]
[326988257,1715687439072,-535.99,0.00012897,2]
[326988258,1715687439082,-500.0,0.00012897,2]
[326988259,1715687439093,-512.5876465,0.00012897,2]
[326988260,1715687439103,-519.27,0.00012897,2]
[326988261,1715687439114,-642.1022745,0.00012897,2]
[326988262,1715687439123,-328.62136323,0.00012897,2]
[326988263,1715687439133,-500.0,0.00012897,2]
[326988264,1715687439143,-520.6257289,0.00012897,2]
[326988265,1715687439153,-1290.95,0.00012897,2]
[326988266,1715687439166,-500.0,0.00012897,2]
[326988267,1715687439177,-547.24381892,0.00012897,2]
[326988268,1715687439187,-548.18,0.00012897,2]
[326988269,1715687439197,-500.0,0.00012897,2]
[326988270,1715687439207,-514.73190307,0.00012897,2]
[326988271,1715687439217,-500.0,0.00012897,2]
[326988272,1715687439227,-467.75542855,0.00012897,2]
[326988273,1715687439236,-575.21,0.00012897,2]
[326988274,1715687439246,-520.78,0.00012897,2]
[326988275,1715687439261,-505.64656316,0.00012897,2]
[326988276,1715687439271,-440.4256708,0.00012897,2]
[326988277,1715687439280,-605.54,0.00012897,2]
[326988278,1715687439290,-500.0,0.00012897,2]
[326988279,1715687439302,-629.63,0.00012897,2]
[326988280,1715687439312,-175.75740478,0.00012899,2]
[326988281,1715687439322,-310.35709105,0.00012899,2]
[326988282,1715687439331,-509.20839638,0.00012899,2]
[326988283,1715687439341,-168.74,0.00012899,2]
[326988284,1715687439352,-157.58630395,0.00012899,2]
[326988285,1715687439362,-329.07,0.00012899,2]
[326988286,1715687439371,-377.72,0.00012899,2]
[326988287,1715687439380,-167.37,0.00012899,2]
[326988288,1715687439391,-500.0,0.00012899,2]
[326988289,1715687439400,-309.59,0.00012899,2]
[326988290,1715687439410,-1290.95,0.00012899,2]
[326988291,1715687439421,-490.31,0.00012899,2]
[326988292,1715687439430,-500.0,0.00012899,2]
[326988293,1715687439440,-500.0,0.00012899,2]
[326988294,1715687439450,-351.3302369,0.00012899,2]
[326988295,1715687439460,-173.54433881,0.000129,2]
[326988296,1715687439470,-12212.37745001,0.000129,2]
[326988297,1715687439480,-16476.63732844,0.000129,2]
[326988298,1715687439490,-298.745,0.00012987,2]
[326988299,1715687439500,-150.02,0.00012989,2]
[326988300,1715687439510,-166.78278404,0.0001299,2]
[326988301,1715687439519,-150.02,0.0001299,2]
[326988303,1715687439528,-150.02,0.0001299,2]
[326988305,1715687439538,-150.02,0.0001299,2]
[326988307,1715687439548,-150.02,0.0001299,2]
[326988309,1715687439558,-150.02,0.0001299,2]
[326988311,1715687439568,-150.02,0.0001299,2]
[326988312,1715687439578,-150.02,0.0001299,2]
[326988313,1715687439588,-263.67538992,0.00012998,2]
[326988314,1715687439598,-237.10219524,0.00012998,2]
[326988315,1715687439608,-155.0,0.00012998,2]
[326988316,1715687439618,-472.3976956,0.00012998,2]
[326988318,1715687439629,-605.40552838,0.00012998,2]
[326988319,1715687439638,-207.2840544,0.00012998,2]
[326988320,1715687439648,-1110.95201386,0.00012998,2]
[326988321,1715687439658,-4739.38262032,0.00012998,2]
[326988322,1715687439668,-1213.08546547,0.00012998,2]
[326988323,1715687439679,-1999.47523704,0.00012998,2]
[326988324,1715687439689,-450.09777938,0.00012998,2]
[326988325,1715687439699,-218.05512287,0.00012998,2]
[326988326,1715687439709,-292.47865318,0.00012998,2]
[326988327,1715687439719,-326.5426325,0.00012998,2]
[326988328,1715687439729,-1004.63658851,0.00012998,2]
[326988329,1715687439739,-204.49444067,0.00012998,2]
[326988330,1715687439748,-155.0,0.00012998,2]
[326988331,1715687439758,-6375.93537093,0.00012998,2]
[326988332,1715687439767,-302.32798226,0.00012998,2]
[326988333,1715687439777,-522.66900323,0.00012998,2]
[326988334,1715687439788,-782.62056695,0.00012998,2]
[326988335,1715687439797,-535.18687779,0.00012998,2]
[326988336,1715687439807,-223.54477722,0.00012998,2]
[326988337,1715687439816,-269.29,0.00012998,2]
[326988338,1715687439826,-217.98,0.00012998,2]
[326988339,1715687439836,-500.0,0.00012998,2]
[326988340,1715687439846,-607.55,0.00012998,2]
[326988341,1715687439856,-1501.45921731,0.00012998,2]
[326988342,1715687439866,-155.0,0.00012998,2]
[326988343,1715687439876,-500.0,0.00012998,2]
[326988344,1715687439886,-388.37929669,0.00012998,2]
[326988345,1715687439896,-500.0,0.00012998,2]
[326988346,1715687439906,-500.0,0.00012998,2]
[326988347,1715687439916,-500.0,0.00012998,2]
[326988348,1715687439926,-500.0,0.00012998,2]
[326988349,1715687439938,-500.0,0.00012998,2]
[326988350,1715687439947,-155.9132,0.00012999,2]
[326988351,1715687439958,-475.90756902,0.00012999,2]
[326988352,1715687439968,-6136.91024807,0.00012999,2]
[326988353,1715687439980,-300.02,0.00012999,2]
[326988354,1715687439990,-1034.52556333,0.00012999,3]
[326988355,1715687440000,-500.0,0.00012999,2]
[326988356,1715687440010,-500.0,0.00012999,2]
[326988357,1715687440020,-500.0,0.00012999,2]